bitfinex/quotes_SOLUSD_20250118
["timestamp","ask_amount","ask_price","bid_price","bid_amount"]
[1737194178199,20.33046466,237.92,237.86,33.761184]
[1737194178403,20.33046466,237.92,237.77,0.63056601]
[1737194178593,20.33046466,237.92,237.83,20.33046466]
[1737194178983,20.33046466,237.92,237.87,23.776884]
[1737194179600,20.33046466,237.92,237.86,20.0]
[1737194179903,20.33046466,237.9,237.84,20.0]
[1737194180285,20.33046466,237.88,237.84,20.0]
[1737194180492,20.33046466,237.88,237.85,20.0]
[1737194180892,20.33046466,237.88,237.79,20.33046466]
[1737194181094,20.33046466,237.92,237.83,20.33046466]
[1737194181305,20.33046466,237.92,237.84,23.776884]
[1737194181789,0.03,238.01,237.84,20.0]
[1737194181790,20.33046466,237.89,237.84,20.0]
[1737194181995,20.33046466,237.87,237.77,22.03879991]
[1737194182182,20.33046466,237.86,237.76,2.4719]
[1737194182388,20.33046466,237.88,237.79,20.33046466]
[1737194182688,20.33046466,237.88,237.8,23.776884]
[1737194183286,20.0,237.95,237.82,23.776884]
[1737194183287,20.33046466,237.9,237.82,23.776884]
[1737194184009,20.33046466,237.86,237.77,20.33046466]
[1737194184306,20.33046466,237.84,237.76,2.4719]
[1737194184821,20.33046466,237.82,237.76,0.063]
[1737194186491,20.33046466,237.9,237.84,20.0]
[1737194186834,20.33046466,237.9,237.85,23.776884]
[1737194186990,0.03,237.92,237.88,20.0]
[1737194187184,0.03,237.92,237.89,23.776884]
[1737194187387,0.03,237.92,237.91,43.776884]
[1737194188510,0.03,237.92,237.91,23.776884]
[1737194188905,0.03,237.92,237.88,20.0]
[1737194189099,20.36046466,237.92,237.88,20.0]
[1737194189923,20.36046466,237.92,237.86,20.0]
[1737194190202,0.03,237.92,237.91,23.776884]
[1737194192292,0.03,237.92,237.88,20.0]
[1737194192497,20.36046466,237.92,237.84,2.3443]
[1737194193111,20.36046466,237.92,237.87,23.776884]
[1737194193315,0.03,237.92,237.87,23.776884]
[1737194193510,0.03,237.92,237.91,43.776884]
[1737194193704,0.03,237.92,237.91,64.10734866]
[1737194194112,20.33046466,238.0,237.91,64.10734866]
[1737194194311,20.33046466,238.0,237.94,23.776884]
[1737194194618,0.03,238.01,237.98,23.776884]
[1737194195200,20.33046466,238.0,237.98,23.776884]
[1737194195400,0.03,238.01,237.98,23.776884]
[1737194195602,0.03,238.01,238.0,43.776884]
[1737194197907,0.03,238.01,238.0,64.10734866]
[1737194198802,0.03,238.01,238.0,65.75783479]
[1737194199012,20.33046466,238.14,238.01,33.209184]
[1737194199207,20.36046466,238.16,238.1,23.776884]
[1737194199403,20.36046466,238.12,238.03,20.33046466]
[1737194199602,20.36046466,238.12,237.99,20.33046466]
[1737194199603,20.33046466,238.08,237.99,20.33046466]
[1737194199803,20.33046466,238.08,237.95,15.49837841]
[1737194199804,2.4192,238.1,237.92,15.13541024]
[1737194200009,20.33046466,238.01,237.93,20.33046466]
[1737194200208,0.03,238.01,237.93,20.33046466]
[1737194200417,0.03,238.01,238.0,20.0]
[1737194201129,0.03,238.01,238.0,43.776884]
[1737194201434,20.33046466,238.09,238.05,23.776884]
[1737194201812,0.03,238.12,238.05,23.776884]
[1737194202205,0.03,238.12,238.09,23.776884]
[1737194202925,0.03,238.12,238.08,40.33046466]
[1737194203129,0.03,238.12,238.06,9.1706]
[1737194203304,20.33046466,238.11,238.03,20.33046466]
[1737194203508,0.03,238.12,238.1,20.0]
[1737194203714,0.03,238.12,238.0,7.7212456]
[1737194203715,20.33046466,238.11,238.01,20.33046466]
[1737194203919,0.03,238.12,238.01,20.33046466]
[1737194203920,20.33046466,238.09,238.01,20.33046466]
[1737194204122,20.33046466,238.09,238.04,20.0]
[1737194204519,20.33046466,238.05,237.94,29.50106466]
[1737194204722,20.33046466,238.03,237.94,29.50106466]
[1737194205030,9.7081,238.11,237.92,15.13541024]
[1737194205031,20.33046466,237.99,237.92,37.1177]
[1737194205214,20.33046466,237.99,237.92,15.13541024]
[1737194206416,2.4513,238.07,237.85,8.35367841]
[1737194206417,20.33046466,237.94,237.85,6.06607841]
[1737194206726,4.2006,238.06,237.8,20.33046466]
[1737194206727,20.33046466,237.9,237.8,20.33046466]
[1737194206928,20.33046466,237.88,237.8,20.33046466]
[1737194207120,20.33046466,237.88,237.78,26.39654307]
[1737194207711,20.33046466,237.88,237.81,20.0]
[1737194207926,20.33046466,237.88,237.76,20.39346466]
[1737194208131,20.33046466,237.88,237.79,20.0]
[1737194208432,20.33046466,237.88,237.76,20.39346466]
[1737194208637,20.33046466,237.88,237.76,0.063]
[1737194210525,20.33046466,237.88,237.79,23.776884]
[1737194211031,20.33046466,237.88,237.76,0.063]
[1737194211230,20.33046466,237.88,237.78,20.0]
[1737194211532,20.33046466,237.88,237.79,23.776884]
[1737194211731,20.33046466,237.82,237.79,23.776884]
[1737194212227,20.33046466,237.82,237.76,0.063]
[1737194212414,20.33046466,237.82,237.77,20.0]
[1737194212728,20.33046466,237.82,237.79,0.063]
[1737194212930,20.33046466,237.8,237.79,0.063]
[1737194214236,22.78176466,237.8,237.79,0.063]
[1737194217618,20.33046466,237.8,237.79,0.063]
[1737194222019,24.53566466,237.8,237.79,0.063]
[1737194222237,20.33046466,237.8,237.79,0.063]
[1737194227327,20.33046466,237.82,237.79,0.063]
[1737194227736,20.33046466,237.8,237.79,0.063]
[1737194227940,20.33046466,237.82,237.79,0.063]
[1737194228256,20.33046466,237.84,237.79,0.063]
[1737194228459,20.33046466,237.82,237.79,0.063]
[1737194229850,0.03,237.86,237.79,0.063]
[1737194230058,20.36046466,237.86,237.79,0.063]
[1737194230354,20.33046466,237.84,237.79,0.063]
[1737194230569,20.33046466,237.82,237.79,0.063]
[1737194231053,20.33046466,237.84,237.79,0.063]
[1737194231233,20.33046466,237.82,237.79,0.063]
[1737194231548,20.33046466,237.8,237.79,0.063]
[1737194232531,24.53566466,237.8,237.79,0.063]
[1737194233544,20.33046466,237.77,237.76,0.063]
[1737194235361,22.01245566,237.77,237.76,0.063]
[1737194239068,26.21815566,237.77,237.76,0.063]
[1737194239256,46.54862032,237.77,237.76,0.063]
[1737194239653,70.32550432,237.77,237.64,0.063]
[1737194239959,20.33046466,237.65,237.64,0.063]
[1737194242367,20.33046466,237.65,237.63,0.0408321]
[1737194248366,20.39829211,237.64,237.63,0.0408321]
[1737194250676,22.08116611,237.64,237.63,0.0408321]
[1737194253362,17.53147569,237.64,237.63,0.0408321]
[1737194253564,34.49282955,237.64,237.56,0.063]
[1737194253770,12.75335386,237.57,237.56,0.063]
[1737194254773,12.75335386,237.61,237.56,0.063]
[1737194254969,3.09524783,237.63,237.56,0.063]
[1737194255165,12.75335386,237.62,237.56,0.063]
[1737194255869,12.75335386,237.6,237.56,0.063]
[1737194259593,12.75335386,237.58,237.56,0.063]
[1737194259887,14.43622786,237.64,237.58,20.0]
[1737194260068,12.75335386,237.66,237.57,12.75335386]
[1737194260791,12.75335386,237.66,237.58,23.776884]
[1737194260973,12.75335386,237.64,237.58,20.0]
[1737194261173,6.3962067,237.76,237.58,20.0]
[1737194261380,12.75335386,237.65,237.58,23.776884]
[1737194261581,10.6022067,237.76,237.62,23.776884]
[1737194261582,12.75335386,237.67,237.62,23.776884]
[1737194261769,0.03,237.66,237.62,23.776884]
[1737194262196,0.03,237.66,237.65,43.776884]
[1737194263081,0.03,237.66,237.61,2.3181]
[1737194263281,12.75335386,237.62,237.57,10.1735]
[1737194263482,0.03,237.66,237.57,10.1735]
[1737194263483,12.75335386,237.6,237.57,0.063]
[1737194264082,12.75335386,237.58,237.57,0.063]
[1737194265172,12.75335386,237.6,237.57,0.063]
[1737194265573,12.75335386,237.62,237.57,0.063]
[1737194265791,12.78335386,237.66,237.61,20.0]
[1737194265980,0.03,237.66,237.63,23.776884]
[1737194266371,0.03,237.66,237.57,0.69430528]
[1737194266372,12.75335386,237.64,237.57,0.063]
[1737194266567,12.75335386,237.64,237.57,12.81635386]
[1737194266773,12.78335386,237.66,237.62,23.776884]
[1737194267369,20.39533592,237.64,237.61,23.776884]
[1737194268293,20.42533592,237.66,237.6,20.0]
[1737194268589,20.42533592,237.66,237.61,23.776884]
[1737194269293,20.42533592,237.66,237.59,20.0]
[1737194269489,20.42533592,237.66,237.6,23.776884]
[1737194269793,20.42533592,237.66,237.62,20.0]
[1737194270674,20.39533592,237.64,237.57,0.063]
[1737194271395,20.39533592,237.64,237.57,20.063]
[1737194273496,20.34834103,237.64,237.61,20.0]
[1737194274299,20.34834103,237.64,237.57,0.063]
[1737194274473,20.39533592,237.62,237.57,0.063]
[1737194276096,20.39533592,237.58,237.57,0.063]
[1737194280595,20.39533592,237.6,237.57,0.063]
[1737194282296,113.03414394,237.94,237.68,20.0]
[1737194282297,20.39533592,237.72,237.68,20.0]
[1737194282595,6.3962067,237.77,237.75,23.776884]
[1737194282785,6.1580067,237.77,237.73,20.39533592]
[1737194282988,12.73578667,237.79,237.71,20.39533592]
[1737194283185,0.03,237.79,237.71,20.39533592]
[1737194283390,0.03,237.79,237.74,20.0]
[1737194283596,20.42533592,237.79,237.74,20.0]
[1737194283807,20.39533592,237.77,237.67,20.39533592]
[1737194284097,20.39533592,237.77,237.7,20.0]
[1737194284296,20.39533592,237.75,237.7,20.0]
[1737194286799,0.03,237.79,237.61,137.3]
[1737194286800,20.39533592,237.73,237.71,0.063]
[1737194289402,12.74155354,237.72,237.71,0.063]
[1737194291283,12.74155354,237.74,237.71,0.063]
[1737194291499,12.74155354,237.78,237.71,0.063]
[1737194291690,12.74155354,237.76,237.71,0.063]
[1737194293111,12.74155354,237.74,237.71,0.063]
[1737194293810,12.74155354,237.76,237.71,0.063]
[1737194294617,0.03,237.79,237.71,43.839884]
[1737194294914,0.03,237.79,237.75,23.776884]
[1737194295411,0.03,237.79,237.75,20.0]
[1737194295607,0.03,237.79,237.76,20.0]
[1737194296016,12.77155354,237.79,237.72,23.776884]
[1737194297314,12.74155354,237.76,237.71,0.063]
[1737194299327,0.03,237.79,237.71,0.063]
[1737194299328,20.37810111,237.75,237.71,0.063]
[1737194300195,20.40810111,237.79,237.73,23.776884]
[1737194300410,0.03,237.79,237.72,20.37810111]
[1737194300599,0.03,237.79,237.73,23.776884]
[1737194303817,0.03,237.79,237.76,20.0]
[1737194304134,0.03,237.79,237.75,23.776884]
[1737194304330,0.03,237.79,237.78,43.776884]
[1737194305119,0.03,237.79,237.78,20.0]
[1737194305698,0.03,237.79,237.77,20.0]
[1737194307126,0.03,237.79,237.76,20.0]
[1737194308526,0.03,237.79,237.77,20.0]
[1737194312930,0.03,237.86,237.82,23.776884]
[1737194313110,0.03,237.88,237.83,5.77613264]
[1737194313313,0.03,237.88,237.79,2.3227]
[1737194313533,0.03,237.88,237.83,20.0]
[1737194313534,20.40810111,237.88,237.83,20.0]
[1737194313914,0.03,237.88,237.84,23.776884]
[1737194314429,0.03,237.88,237.84,44.15498511]
[1737194315111,0.03,237.88,237.87,20.0]
[1737194316424,0.03,237.88,237.83,23.776884]
[1737194316953,0.03,237.88,237.87,20.0]
[1737194317130,0.03,237.88,237.87,43.776884]
[1737194317631,0.03,237.88,237.86,20.37810111]
[1737194318641,0.03,237.88,237.87,23.776884]
[1737194318833,0.03,237.88,237.87,161.70728465]
[1737194319136,0.03,237.88,237.87,166.85301664]
[1737194319526,0.03,237.88,237.87,161.076884]
[1737194321343,0.03,237.88,237.87,173.79103025]
[1737194323839,0.03,237.88,237.87,36.49103025]
[1737194326947,0.03,237.88,237.87,174.42140862]
[1737194327142,2.3925,238.03,237.96,12.71414625]
[1737194328235,12.71414625,238.0,237.91,12.71414625]
[1737194328419,12.71414625,237.98,237.9,137.3]
[1737194328619,12.71414625,237.98,237.9,23.776884]
[1737194329136,12.71414625,237.96,237.87,12.71414625]
[1737194330640,12.71414625,237.94,237.85,12.71414625]
[1737194331039,12.71414625,237.94,237.88,20.0]
[1737194331343,12.71414625,238.02,237.94,23.776884]
[1737194334351,12.71414625,238.02,237.93,12.71414625]
[1737194334546,12.71414625,237.98,237.94,20.0]
[1737194334751,0.03,238.03,238.0,20.0]
[1737194334935,0.03,238.03,238.01,36.49103025]
[1737194335333,0.03,238.03,238.01,37.12104118]
[1737194335746,0.03,238.02,238.01,37.12104118]
[1737194336353,0.03,238.02,238.01,174.42104118]
[1737194336552,0.03,238.02,238.01,173.79103025]
[1737194340155,0.03,238.02,238.01,12.71414625]
[1737194340550,0.03,238.02,238.01,179.56716289]
[1737194341558,0.03,238.02,238.01,42.26716289]
[1737194341753,0.03,238.02,238.01,19.1203038]
[1737194343952,0.03,238.09,238.04,157.3]
[1737194344256,0.03,238.09,238.08,206.5051765]
[1737194344457,0.03,238.09,238.08,199.56716289]
[1737194345642,0.03,238.09,238.08,212.28130914]
[1737194346550,0.03,238.09,238.08,199.56716289]
[1737194346864,0.03,238.09,238.08,212.28130914]
[1737194348158,0.03,238.09,238.08,175.79027889]
[1737194348457,0.03,238.09,238.08,155.79027889]
[1737194348665,0.03,238.09,238.06,12.71414625]
[1737194349058,0.03,238.09,238.04,12.71414625]
[1737194349256,12.74414625,238.09,238.0,12.71414625]
[1737194349450,12.71414625,238.07,238.0,12.71414625]
[1737194349842,12.71414625,238.07,238.03,20.0]
[1737194350047,12.74414625,238.09,238.03,23.776884]
[1737194350246,0.03,238.09,238.04,12.71414625]
[1737194350465,0.03,238.09,238.02,12.71414625]
[1737194350647,12.71414625,238.07,237.99,12.71414625]
[1737194350847,12.71414625,238.03,237.95,18.49027889]
[1737194351269,12.71414625,238.03,237.98,20.0]
[1737194351751,12.71414625,238.03,237.96,23.776884]
[1737194352164,12.71414625,238.03,237.95,18.49027889]
[1737194352352,12.71414625,238.01,237.93,12.71414625]
[1737194352948,15.13604625,238.01,237.93,12.71414625]
[1737194353370,2.4219,238.01,237.95,12.71414625]
[1737194354069,12.71414625,238.05,237.98,20.0]
[1737194354271,12.71414625,238.05,238.0,20.0]
[1737194355160,12.71414625,238.01,237.9,143.13913264]
[1737194355346,12.71414625,238.01,237.92,12.71414625]
[1737194356071,12.71414625,238.01,237.93,23.776884]
[1737194357273,12.71414625,238.01,237.96,20.0]
[1737194357473,3.1214566,238.0,237.93,23.776884]
[1737194358052,3.1214566,238.0,237.99,43.776884]
[1737194358461,15.13604625,238.07,237.99,43.776884]
[1737194358758,2.4219,238.07,238.01,23.776884]
[1737194359984,15.13604625,238.07,238.01,23.776884]
[1737194360183,15.13604625,238.07,237.98,12.71414625]
[1737194360360,15.13604625,238.07,237.99,23.776884]
[1737194360557,15.13604625,238.07,238.01,20.0]
[1737194362055,15.13604625,238.07,237.98,32.71414625]
[1737194362254,2.4219,238.07,238.01,23.776884]
[1737194363251,2.4219,238.07,238.03,23.776884]
[1737194363666,0.03,238.09,238.04,12.71414625]
[1737194364068,0.03,238.09,237.96,150.01414625]
[1737194364069,0.03,238.09,238.08,20.0]
[1737194365156,0.03,238.09,238.06,12.71414625]
[1737194365362,0.03,238.09,238.05,23.776884]
[1737194365967,12.74414625,238.09,238.04,20.0]
[1737194366370,12.71414625,238.05,237.97,12.71414625]
[1737194366559,12.71414625,238.05,237.94,5.77613264]
[1737194366759,12.71414625,238.03,237.94,12.71414625]
[1737194367379,16.91434625,238.08,237.92,12.71414625]
[1737194367380,12.71414625,238.01,237.92,12.71414625]
[1737194367764,12.71414625,237.99,237.92,12.71414625]
[1737194368581,12.71414625,237.99,237.9,12.77714625]
[1737194368779,12.71414625,237.99,237.92,12.71414625]
[1737194369383,12.71414625,237.99,237.92,20.0]
[1737194369568,12.71414625,237.99,237.93,20.0]
[1737194370069,12.71414625,237.99,237.9,12.77714625]
[1737194370268,9.3291,238.0,237.94,12.71414625]
[1737194370487,2.2558,238.02,237.96,12.71414625]
[1737194372482,12.71414625,238.01,237.92,12.77714625]
[1737194373488,12.71414625,238.01,237.95,20.0]
[1737194373693,12.71414625,237.99,237.95,20.0]
[1737194373993,12.71414625,237.99,237.92,12.77714625]
[1737194374361,12.71414625,237.97,237.92,0.063]
[1737194374693,12.71414625,237.97,237.93,20.0]
[1737194374993,12.71414625,237.99,237.93,20.0]
[1737194375377,12.71414625,237.97,237.92,0.063]
[1737194376071,12.71414625,237.97,237.93,20.0]
[1737194377472,6.4571,238.02,237.93,20.0]
[1737194377473,12.71414625,237.99,237.93,20.0]
[1737194377672,2.2558,238.02,237.94,36.49103025]
[1737194378693,2.2558,238.02,237.94,12.71414625]
[1737194378880,12.71414625,238.01,237.94,12.71414625]
[1737194379081,12.71414625,238.01,237.92,32.77714625]
[1737194381805,12.51175625,238.01,237.92,32.77714625]
[1737194383890,2.2558,238.02,237.94,12.71414625]
[1737194384074,2.2558,238.02,237.96,12.71414625]
[1737194384700,2.2558,238.02,237.94,12.71414625]
[1737194385000,2.2558,238.02,237.92,0.063]
[1737194385001,12.71414625,238.01,237.95,20.0]
[1737194385297,12.71414625,238.01,237.92,12.77714625]
[1737194385498,12.71414625,238.01,237.95,20.0]
[1737194387100,12.71414625,237.99,237.93,20.0]
[1737194387299,12.71414625,237.99,237.92,0.063]
[1737194390211,12.71414625,237.95,237.92,0.063]
[1737194391278,12.71414625,237.97,237.92,0.063]
[1737194391481,12.71414625,237.99,237.92,0.063]
[1737194392494,12.71414625,237.97,237.92,0.063]
[1737194393903,2.2558,238.02,237.92,0.063]
[1737194394108,12.71414625,237.98,237.92,0.063]
[1737194394594,12.71414625,238.0,237.93,20.0]
[1737194395510,12.71414625,237.98,237.92,0.063]
[1737194396397,0.03,238.01,237.95,20.0]
[1737194396602,12.74414625,238.01,237.95,20.0]
[1737194398595,12.74414625,238.01,237.92,12.77714625]
[1737194400306,0.03,238.01,237.97,20.0]
[1737194400483,0.03,238.01,237.99,20.0]
[1737194400681,0.03,238.01,238.0,20.0]
[1737194402210,0.03,238.01,238.0,43.776884]
[1737194402387,0.03,238.01,237.92,0.063]
[1737194402705,0.03,238.01,238.0,20.0]
[1737194403611,0.03,238.01,238.0,12.71414625]
[1737194403902,0.03,238.01,238.0,42.89727121]
[1737194404105,0.03,238.01,238.0,42.26716289]
[1737194406292,0.03,238.09,238.01,161.076884]
[1737194406490,0.03,238.09,238.08,36.49103025]
[1737194406690,0.03,238.09,238.08,42.26716289]
[1737194407305,0.03,238.09,238.08,42.89694319]
[1737194408007,0.03,238.09,238.08,55.61108944]
[1737194409903,0.03,238.09,238.08,18.49027889]
[1737194410196,0.03,238.09,238.01,12.71414625]
[1737194410393,12.71414625,238.05,238.0,0.063]
[1737194410595,12.71414625,238.03,238.0,0.063]
[1737194410800,12.71414625,238.01,238.0,0.063]
[1737194411407,15.20264625,238.01,238.0,0.063]
[1737194414623,20.0,237.98,237.9,0.063]
[1737194414821,22.31294625,237.93,237.9,0.063]
[1737194414989,20.0,237.89,237.81,0.063]
[1737194415314,12.71414625,237.82,237.81,0.063]
[1737194416211,12.71414625,237.86,237.81,0.063]
[1737194416516,12.71414625,237.92,237.86,20.0]
[1737194416692,12.0873,237.93,237.88,20.0]
[1737194417093,12.71414625,237.92,237.88,20.0]
[1737194417292,12.71414625,237.92,237.83,12.71414625]
[1737194417293,20.35325364,237.9,237.82,20.35325364]
[1737194418011,20.35325364,237.9,237.85,20.0]
[1737194418315,20.35325364,237.88,237.83,20.0]
[1737194419314,20.35325364,237.88,237.83,20.063]
[1737194419702,20.35325364,237.88,237.83,0.063]
[1737194420710,12.0873,237.93,237.83,0.063]
[1737194420711,20.35325364,237.86,237.83,0.063]
[1737194421114,20.35325364,237.92,237.85,20.0]
[1737194421419,32.44055364,237.93,237.87,20.0]
[1737194421716,20.35325364,237.91,237.87,20.0]
[1737194422219,20.35325364,237.91,237.86,20.0]
[1737194423013,20.35325364,237.93,237.87,20.0]
[1737194423620,20.35325364,237.93,237.89,20.0]
[1737194425798,20.35325364,237.93,237.86,20.35325364]
[1737194425799,20.35325364,237.92,237.84,20.35325364]
[1737194426001,20.35325364,237.96,237.91,20.0]
[1737194427321,20.35325364,237.94,237.9,20.0]
[1737194428824,20.35325364,237.94,237.86,20.35325364]
[1737194429427,20.35325364,237.94,237.88,20.0]
[1737194430129,20.35325364,237.9,237.83,0.063]
[1737194431119,20.35325364,237.9,237.83,20.063]
[1737194431330,20.35325364,237.9,237.83,0.063]
[1737194431631,20.35325364,237.88,237.83,0.063]
[1737194432332,20.35325364,237.88,237.83,20.063]
[1737194432524,20.35325364,237.9,237.83,20.063]
[1737194432700,20.35325364,237.9,237.85,20.0]
[1737194432901,20.35325364,237.92,237.85,20.0]
[1737194433107,20.35325364,237.9,237.85,20.0]
[1737194434010,0.03,238.01,237.87,23.776884]
[1737194434209,20.35325364,238.0,237.9,20.35325364]
[1737194434532,0.03,238.01,237.98,20.0]
[1737194435529,0.03,238.01,237.92,20.35325364]
[1737194435902,0.03,238.01,238.0,20.0]
[1737194436108,0.03,238.01,238.0,43.776884]
[1737194436612,20.38325364,238.1,238.0,44.40700359]
[1737194436820,20.35325364,238.08,237.99,20.35325364]
[1737194437026,20.35325364,238.08,238.02,20.0]
[1737194437433,20.35325364,238.08,237.97,20.35325364]
[1737194437735,20.35325364,238.04,237.95,20.35325364]
[1737194437939,20.35325364,238.04,237.99,20.0]
[1737194438310,20.35325364,238.02,237.99,20.0]
[1737194438703,20.35325364,238.02,237.96,20.0]
[1737194439233,20.35325364,238.02,237.94,23.776884]
[1737194439628,20.35325364,238.04,237.95,20.35325364]
[1737194439832,20.35325364,238.04,237.98,20.0]
[1737194441045,4.23,238.1,237.97,20.0]
[1737194441046,20.35325364,238.02,237.97,20.0]
[1737194441520,20.35325364,238.04,237.98,20.0]
[1737194442340,20.35325364,238.0,237.93,7.11687355]
[1737194442541,20.35325364,237.96,237.87,20.35325364]
[1737194442843,20.35325364,237.94,237.86,7.11687355]
[1737194443019,20.35325364,237.92,237.86,7.11687355]
[1737194443212,20.35325364,237.92,237.83,20.41625364]
[1737194443612,20.35325364,237.94,237.85,20.35325364]
[1737194443814,29.58615364,237.98,237.89,20.35325364]
[1737194444031,20.35325364,237.94,237.85,20.35325364]
[1737194444935,20.35325364,237.9,237.83,0.063]
[1737194445125,9.2329,237.98,237.85,20.35325364]
[1737194445324,20.35325364,237.94,237.85,20.35325364]
[1737194445743,20.35325364,237.9,237.83,20.41625364]
[1737194446438,20.35325364,237.92,237.83,20.41625364]
[1737194446633,20.35325364,237.92,237.86,20.0]
[1737194446940,20.35325364,237.94,237.85,20.35325364]
[1737194447535,20.35325364,237.96,237.87,20.35325364]
[1737194447837,29.58615364,237.98,237.89,20.35325364]
[1737194448517,20.35325364,237.96,237.9,20.0]
[1737194448719,20.35325364,237.92,237.85,6.40548466]
[1737194448919,20.35325364,237.92,237.83,20.41625364]
[1737194450138,20.35325364,237.96,237.87,20.35325364]
[1737194450540,20.35325364,237.94,237.86,23.776884]
[1737194450743,20.35325364,237.94,237.88,20.0]
[1737194451244,20.35325364,237.94,237.89,20.0]
[1737194451548,22.64415364,238.0,237.93,20.0]
[1737194453234,20.35325364,238.0,237.94,23.776884]
[1737194454128,20.24239194,238.0,237.94,23.776884]
[1737194454840,20.24239194,238.0,237.91,20.35325364]
[1737194455046,20.35325364,237.98,237.94,20.0]
[1737194455544,12.71209349,237.98,237.94,20.0]
[1737194455743,12.71209349,237.98,237.9,12.71209349]
[1737194455744,12.71209349,237.98,237.93,20.0]
[1737194457952,12.71209349,237.98,237.91,20.0]
[1737194458147,12.71209349,237.94,237.88,0.063]
[1737194458448,12.71209349,237.98,237.89,23.776884]
[1737194458663,12.71209349,238.0,237.93,20.0]
[1737194458949,12.71209349,237.98,237.93,20.0]
[1737194460848,12.71209349,237.96,237.88,6.46848466]
[1737194461431,12.71209349,237.94,237.88,0.063]
[1737194461837,12.71209349,237.9,237.88,0.063]
[1737194462343,16.91549349,237.9,237.88,0.063]
[1737194462745,16.91549349,237.9,237.83,0.063]
[1737194463044,12.71209349,237.84,237.83,0.063]
[1737194463237,25.42418698,237.84,237.83,0.063]
[1737194463756,49.20107098,237.84,237.83,0.063]
[1737194464052,25.42418698,237.84,237.83,0.063]
[1737194464263,29.62868698,237.84,237.83,0.063]
[1737194464954,55.69647098,237.84,237.83,0.063]
[1737194465361,71.02582658,237.84,237.83,0.063]
[1737194465653,53.010984,237.82,237.81,0.063]
[1737194465858,23.776884,237.81,237.76,0.063]
[1737194466035,20.37677129,237.77,237.76,0.063]
[1737194466859,20.37677129,237.79,237.76,0.063]
[1737194467036,20.37677129,237.85,237.76,23.839884]
[1737194467356,20.37677129,237.91,237.84,20.0]
[1737194468032,20.37677129,237.89,237.84,20.0]
[1737194468350,20.37677129,237.87,237.79,20.37677129]
[1737194468561,20.37677129,237.85,237.76,0.063]
[1737194468763,20.37677129,237.83,237.76,0.063]
[1737194469061,20.37677129,237.83,237.78,20.0]
[1737194469234,20.37677129,237.83,237.76,23.839884]
[1737194469563,20.37677129,237.83,237.76,0.063]
[1737194469856,20.37677129,237.83,237.78,20.0]
[1737194470253,20.37677129,237.83,237.76,0.063]
[1737194470254,20.37677129,237.83,237.77,20.0]
[1737194471056,20.37677129,237.81,237.76,0.063]
[1737194471569,20.37677129,237.77,237.76,0.063]
[1737194471950,20.37677129,237.81,237.76,0.063]
[1737194473356,0.07830468,237.77,237.76,0.063]
[1737194473570,0.07830468,237.77,237.76,20.063]
[1737194473737,0.07830468,237.77,237.76,0.063]
[1737194474242,20.45507597,237.77,237.76,0.063]
[1737194479862,0.07830468,237.77,237.76,0.063]
[1737194482047,20.45507597,237.77,237.76,0.063]
[1737194482366,0.07830468,237.77,237.76,0.063]
[1737194483656,20.45507597,237.77,237.76,0.063]
[1737194488378,27.08947597,237.77,237.76,0.063]
[1737194488974,50.86635997,237.77,237.76,0.063]
[1737194489358,44.23294442,237.77,237.71,0.063]
[1737194490058,12.74335574,237.72,237.71,0.063]
[1737194490259,27.28388868,237.77,237.71,0.063]
[1737194490260,12.74335574,237.74,237.71,0.063]
[1737194490461,12.74335574,237.76,237.71,0.063]
[1737194490761,1.07830468,237.77,237.71,0.063]
[1737194492160,12.74335574,237.75,237.71,0.063]
[1737194493478,0.088462,237.72,237.71,0.063]
[1737194494979,0.088462,237.72,237.71,64.21957057]